[Event "Schachfestival Open-A 2018"]
[Site "Lueneburg"]
[Date "2018.07.09"]
[Round "5"]
[White "Colpe, Malte"]
[Black "Stork, Oliver"]
[Result "1/2-1/2"]
[ECO "D31"]
[WhiteElo "2382"]
[BlackElo "2111"]
[Annotator "ChessBase"]
[PlyCount "118"]
[EventDate "2018.07.06"]
[EventType "swiss"]
[EventCountry "GER"]
[SourceTitle "playchess.com"]
[Source "ChessBase"]
[SourceQuality "1"]
[TimeControl "40/5400+30:1800+30"]

1. d4 {[%emt 0:00:00]} d5 {[%emt 0:00:00]} 2. c4 {[%emt 0:00:00]} e6 {[%emt 0:00:00]} 3. Nc3 {[%emt 0:00:00]} Be7 {[%emt 0:00:00]} 4. cxd5 {[%emt 0:00:44]} exd5 {[%emt 0:00:00]} 5. Bf4 {[%emt 0:00:21]} c6 {[%emt 0:00:08]} 6. Qc2 {[%emt 0:00:52]} Nf6 {[%emt 0:02:33]} 7. e3 {[%emt 0:00:20]} O-O {[%emt 0:02:19]} 8. Bd3 {[%emt 0:00:17]} Nbd7 {[%emt 0:01:52]} 9. Nf3 {[%emt 0:03:29]} Re8 {[%emt 0:05:19]} 10. h3 {[%emt 0:03:05]} Nf8 {[%emt 0:03:21]} 11. Ne5 {[%emt 0:04:53]} Be6 {[%emt 0:04:47]} 12. O-O {[%emt 0:04:34]} N6d7 {[%emt 0:01:53]} 13. Bh2 {[%emt 0:08:19]} f6 {[%emt 0:15:48]} 14. Nf3 {[%emt 0:01:07]} Nb6 {[%emt 0:03:09]} 15. Rfe1 {[%emt 0:07:28]} Bd6 {[%emt 0:02:24]} 16. Bxd6 {[%emt 0:00:50]} Qxd6 {[%emt 0:00:05]} 17. a3 {[%emt 0:03:23]} Qd7 {[%emt 0:13:49]} 18. Rac1 {[%emt 0:13:16]} Nc4 {[%emt 0:08:08]} 19. Na4 {[%emt 0:01:59]} Nd6 {[%emt 0:07:46]} 20. Nc5 {[%emt 0:00:47]} Qe7 {[%emt 0:01:45]} 21. a4 {[%emt 0:03:26]} g6 {[%emt 0:10:43]} 22. a5 {[%emt 0:03:19]} a6 {[%emt 0:03:03]} 23. Nd2 {[%emt 0:07:23]} f5 {[%emt 0:01:49]} 24. f3 {[%emt 0:03:17]} Bf7 {[%emt 0:01:56]} 25. Re2 {[%emt 0:03:24]} Qf6 {[%emt 0:01:54]} 26. Qc3 {[%emt 0:01:16]} Re7 {[%emt 0:01:36]} 27. Rf1 {[%emt 0:02:32]} Qh4 {[%emt 0:03:20]} 28. e4 {[%emt 0:03:42]} dxe4 {[%emt 0:00:10]} 29. fxe4 {[%emt 0:00:08]} fxe4 {[%emt 0:00:13]} 30. Ndxe4 {[%emt 0:00:20]} Nxe4 {[%emt 0:01:38]} 31. Nxe4 {[%emt 0:00:07]} Nd7 {[%emt 0:00:33]} 32. d5 {[%emt 0:08:02]} Rae8 {[%emt 0:02:22]} 33. dxc6 {[%emt 0:00:55]} bxc6 {[%emt 0:00:49]} 34. Qxc6 {[%emt 0:05:09]} Ne5 {[%emt 0:00:47]} 35. Qc3 {[%emt 0:02:19]} Nxd3 {[%emt 0:00:29]} 36. Nf6+ {[%emt 0:00:22]} Kf8 {[%emt 0:00:10]} 37. Nd7+ {[%emt 0:01:06]} Kg8 {[%emt 0:00:10]} 38. Rxe7 {[%emt 0:01:07]} Rxe7 {[%emt 0:01:09]} 39. Nf6+ {[%emt 0:03:11]} Kf8 {[%emt 0:00:11]} 40. Qxd3 {[%emt 0:00:38]} Qb4 {[%emt 0:01:00]} 41. Kh1 {[%emt 0:16:52]} Kg7 {[%emt 0:17:12]} 42. Qf3 {[%emt 0:00:45]} Re1 {[%emt 0:09:38]} 43. Nh5+ {[%emt 0:04:20]} Kh6 {[%emt 0:00:34]} 44. Ng3 {[%emt 0:03:35]} Rxf1+ {[%emt 0:01:13]} 45. Qxf1 {[%emt 0:00:13]} Kg7 {[%emt 0:02:45]} 46. Qxa6 {[%emt 0:00:28]} Qxb2 {[%emt 0:00:07]} 47. Qa7 {[%emt 0:00:44]} h5 {[%emt 0:00:46]} 48. a6 {[%emt 0:01:59]} Qa1+ {[%emt 0:01:05]} 49. Kh2 {[%emt 0:05:51]} Qe5 {[%emt 0:00:59]} 50. h4 {[%emt 0:00:38]} g5 {[%emt 0:00:18]} 51. Kh3 {[%emt 0:01:05]} Qe6+ {[%emt 0:00:06]} 52. Kh2 {[%emt 0:00:08]} Qe5 {[%emt 0:00:05]} 53. Qf2 {[%emt 0:01:17]} gxh4 {[%emt 0:00:09]} 54. a7 {[%emt 0:00:03]} Bd5 {[%emt 0:00:54]} 55. Kh3 {[%emt 0:01:24]} Qxg3+ {[%emt 0:00:32]} 56. Qxg3+ {[%emt 0:00:11]} hxg3 {[%emt 0:00:03]} 57. Kxg3 {[%emt 0:00:13]} Kg6 {[%emt 0:00:11]} 58. Kh3 {[%emt 0:00:52]} Kg5 {[%emt 0:00:21]} 59. Kg3 {[%emt 0:00:04]} h4+ {[%emt 0:02:32]} 1/2-1/2

[Event "Schachfestival Open-A 2018"]
[Site "Lueneburg"]
[Date "2018.07.09"]
[Round "5"]
[White "Buchenau, Frank"]
[Black "Bogachkova, Alena"]
[Result "1-0"]
[ECO "B27"]
[WhiteElo "2275"]
[BlackElo "2135"]
[Annotator "NA"]
[PlyCount "53"]
[EventDate "2018.07.06"]
[EventType "swiss"]
[EventCountry "GER"]
[SourceTitle "playchess.com"]
[Source "ChessBase"]
[SourceQuality "1"]
[TimeControl "40/5400+30:1800+30"]

1. e4 {[%emt 0:00:00]} c5 {[%emt 0:00:00]} 2. Nf3 {[%emt 0:00:00]} g6 {[%emt 0:00:00]} 3. d4 {[%emt 0:00:27]} cxd4 {[%emt 0:00:00]} 4. Qxd4 {[%emt 0:00:10]} Nf6 {[%emt 0:01:33]} 5. Nc3 {[%emt 0:00:17]} Nc6 {[%emt 0:02:35]} 6. Qa4 {[%emt 0:01:21]} d6 {[%emt 0:04:51]} 7. e5 {[%emt 0:00:18]} Ng4 {[%emt 0:03:34]} 8. exd6 {[%emt 0:13:23]} Qxd6 {[%emt 0:30:53]} 9. h3 {[%emt 0:03:52]} Nge5 {[%emt 0:01:12]} 10. Be2 {[%emt 0:07:48]} Bg7 {[%emt 0:09:30]} 11. Nxe5 {[%emt 0:11:03]} Bxe5 {[%emt 0:05:57]} 12. Bh6 {[%emt 0:04:33]} Bd7 {[%emt 0:11:23]} 13. O-O {[%emt 0:17:37]} g5 {[%emt 0:02:39]} 14. Bxg5 {[%emt 0:01:41]} Qg6 {[%emt 0:00:07]} 15. Qh4 {[%emt 0:04:39]} h6 {[%emt 0:02:11]} 16. Be3 {[%emt 0:02:05]} O-O-O {[%emt 0:08:50]} 17. Bd3 {[%emt 0:04:11]} f5 {[%emt 0:01:12]} 18. f4 {[%emt 0:00:56]} Rhg8 {[%emt 0:01:20]} 19. Qf2 {[%emt 0:00:33]} Bd4 {[%emt 0:00:43]} 20. Bxd4 {[%emt 0:04:04]} Nxd4 {[%emt 0:00:03]} 21. Nd5 {[%emt 0:00:31]} Rde8 {[%emt 0:02:42]} 22. Rfd1 {[%emt 0:10:26]} Bc6 {[%emt 0:03:17]} 23. Bc4 {[%emt 0:00:51]} e5 {[%emt 0:02:51]} 24. fxe5 {[%emt 0:01:28]} Ne6 {[%emt 0:00:45]} 25. Rd2 {[%emt 0:02:06]} b5 {[%emt 0:03:10]} 26. Qxa7 {[%emt 0:01:03]} Bb7 {[%emt 0:01:09]} 27. Nb6+ {[%emt 0:00:42]} 1-0

[Event "Schachfestival Open-A 2018"]
[Site "Lueneburg"]
[Date "2018.07.09"]
[Round "5"]
[White "Weishaeutel, Moritz"]
[Black "Stabolewski, Andreas"]
[Result "1/2-1/2"]
[ECO "B30"]
[WhiteElo "2236"]
[BlackElo "2129"]
[Annotator "NA"]
[PlyCount "83"]
[EventDate "2018.07.06"]
[EventType "swiss"]
[EventCountry "GER"]
[SourceTitle "playchess.com"]
[Source "ChessBase"]
[SourceQuality "1"]
[TimeControl "40/5400+30:1800+30"]

1. e4 {[%emt 0:00:00]} c5 {[%emt 0:00:00]} 2. Nf3 {[%emt 0:00:13]} Nc6 {[%emt 0:00:12]} 3. Bb5 {[%emt 0:00:49]} d6 {[%emt 0:01:49]} 4. O-O {[%emt 0:01:21]} Bd7 {[%emt 0:00:27]} 5. Re1 {[%emt 0:01:29]} Nf6 {[%emt 0:00:25]} 6. c3 {[%emt 0:01:40]} a6 {[%emt 0:00:51]} 7. Ba4 {[%emt 0:01:00] LiveBook: 705 Games} b5 {[%emt 0:00:55]} 8. Bc2 {[%emt 0:00:27]} Bg4 {[%emt 0:01:14]} 9. h3 {[%emt 0:09:15]} Bxf3 {[%emt 0:01:48]} 10. Qxf3 {[%emt 0:00:11]} e6 {[%emt 0:04:51]} 11. d3 {[%emt 0:10:02]} Be7 $11 {[%emt 0:09:32]} 12. Nd2 {[%emt 0:06:33]} O-O {[%emt 0:02:47]} 13. Nf1 {[%emt 0:01:09]} b4 {[%emt 0:06:26]} 14. Bd2 {[%emt 0:16:34]} Rb8 {[%emt 0:05:08]} 15. Ba4 {[%emt 0:10:15]} bxc3 {[%emt 0:02:20]} 16. Bxc3 {[%emt 0:01:39]} Nd4 {[%emt 0:09:00]} 17. Qe3 {[%emt 0:03:39]} Nb5 {[%emt 0:01:49]} 18. Bxb5 {[%emt 0:00:41]} axb5 {[%emt 0:01:16]} 19. b3 {[%emt 0:01:56]} d5 {[%emt 0:07:33]} 20. Bb2 {[%emt 0:02:35]} Qa5 {[%emt 0:15:56]} 21. a4 {[%emt 0:07:56]} c4 {[%emt 0:12:40]} 22. Bxf6 {[%emt 0:06:05]} Bxf6 {[%emt 0:00:36]} 23. e5 {[%emt 0:00:01]} Be7 {[%emt 0:01:36]} 24. axb5 {[%emt 0:00:55]} Qxb5 {[%emt 0:00:49]} 25. bxc4 {[%emt 0:00:10]} dxc4 {[%emt 0:00:14]} 26. dxc4 {[%emt 0:00:46]} Qxc4 {[%emt 0:00:44]} 27. Rec1 {[%emt 0:07:44]} Qh4 {[%emt 0:00:24]} 28. Rc7 {[%emt 0:00:50]} Bg5 {[%emt 0:00:48]} 29. Qc5 {[%emt 0:01:18]} Bd8 {[%emt 0:04:05]} 30. Rc6 {[%emt 0:02:58]} Qb4 {[%emt 0:02:28]} 31. Qxb4 {[%emt 0:01:08]} Rxb4 {[%emt 0:00:01]} 32. Ra8 {[%emt 0:00:07]} Rb5 {[%emt 0:02:39]} 33. Rcc8 {[%emt 0:00:49]} Be7 {[%emt 0:00:10]} 34. f4 {[%emt 0:00:40]} g5 {[%emt 0:01:00]} 35. fxg5 {[%emt 0:01:54]} Rxe5 {[%emt 0:00:26]} 36. Rxf8+ {[%emt 0:00:04]} Bxf8 {[%emt 0:00:06]} 37. h4 {[%emt 0:00:10]} Re4 {[%emt 0:02:12]} 38. g3 {[%emt 0:00:07]} Kg7 {[%emt 0:00:30]} 39. Kg2 {[%emt 0:00:11]} Bd6 {[%emt 0:01:03]} 40. Rd8 {[%emt 0:02:51]} Be5 {[%emt 0:01:14]} 41. Rd3 {[%emt 0:04:46]} h6 {[%emt 0:02:35]} 42. gxh6+ {[%emt 0:04:44]} 1/2-1/2

[Event "Schachfestival Open-A 2018"]
[Site "Lueneburg"]
[Date "2018.07.09"]
[Round "5"]
[White "Boehm, Juergen"]
[Black "Haerig, Wilfried"]
[Result "1/2-1/2"]
[ECO "A57"]
[WhiteElo "2233"]
[BlackElo "2022"]
[Annotator "ChessBase"]
[PlyCount "94"]
[EventDate "2018.07.06"]
[EventType "swiss"]
[EventCountry "GER"]
[SourceTitle "playchess.com"]
[Source "ChessBase"]
[SourceQuality "1"]
[TimeControl "40/5400+30:1800+30"]

1. d4 {[%emt 0:00:00]} Nf6 {[%emt 0:00:00]} 2. c4 {[%emt 0:00:00]} c5 {[%emt 0:00:00]} 3. d5 {[%emt 0:01:14]} b5 {[%emt 0:00:00]} 4. cxb5 {[%emt 0:00:27]} a6 {[%emt 0:00:00]} 5. bxa6 {[%emt 0:04:43]} g6 {[%emt 0:00:07]} 6. g3 {[%emt 0:00:14]} Bxa6 {[%emt 0:00:48]} 7. Bg2 {[%emt 0:00:14]} d6 {[%emt 0:00:24]} 8. Nf3 {[%emt 0:00:33]} Nbd7 {[%emt 0:01:36]} 9. Nc3 {[%emt 0:01:15]} Bg7 {[%emt 0:02:49]} 10. O-O {[%emt 0:00:43]} O-O {[%emt 0:01:39]} 11. Rb1 {[%emt 0:00:43]} Qa5 {[%emt 0:02:24]} 12. Qc2 {[%emt 0:08:12]} Ng4 {[%emt 0:03:25]} 13. Bd2 {[%emt 0:16:02]} Rfb8 {[%emt 0:04:37]} 14. h3 {[%emt 0:08:03]} Nge5 {[%emt 0:00:31]} 15. Nxe5 {[%emt 0:00:12]} Nxe5 {[%emt 0:00:42]} 16. b3 {[%emt 0:00:34]} Bc8 {[%emt 0:02:13]} 17. Rfc1 {[%emt 0:11:53]} Bf5 {[%emt 0:03:27]} 18. e4 {[%emt 0:00:53]} Bc8 {[%emt 0:00:23]} 19. f4 {[%emt 0:06:13]} Nd7 {[%emt 0:01:54]} 20. a4 {[%emt 0:01:08]} Qb6 {[%emt 0:08:02]} 21. Kh2 {[%emt 0:03:45]} Ba6 {[%emt 0:01:03]} 22. Be3 {[%emt 0:03:15]} Qa5 {[%emt 0:12:07]} 23. Bd2 {[%emt 0:05:37]} Rc8 {[%emt 0:02:38]} 24. Nd1 {[%emt 0:00:53]} Qb6 {[%emt 0:09:47]} 25. Bc3 {[%emt 0:03:35]} Bxc3 {[%emt 0:02:39]} 26. Qxc3 {[%emt 0:00:31]} Rab8 {[%emt 0:01:19]} 27. Ne3 {[%emt 0:02:35]} Qb4 {[%emt 0:02:55]} 28. Nc4 {[%emt 0:11:17]} Bxc4 {[%emt 0:11:29]} 29. Qxc4 {[%emt 0:00:14]} Rb6 {[%emt 0:00:40]} 30. Bf1 {[%emt 0:02:16]} Rcb8 {[%emt 0:01:22]} 31. Qxb4 {[%emt 0:01:21]} Rxb4 {[%emt 0:00:18]} 32. a5 {[%emt 0:02:02]} Ra8 {[%emt 0:05:19]} 33. a6 {[%emt 0:01:14]} Nb6 {[%emt 0:01:08]} 34. Ra1 {[%emt 0:00:46]} Ra7 {[%emt 0:02:09]} 35. Bc4 {[%emt 0:03:29]} Nxc4 {[%emt 0:07:17]} 36. bxc4 {[%emt 0:00:07]} Rb6 {[%emt 0:00:05]} 37. Rcb1 {[%emt 0:00:10]} Rbxa6 {[%emt 0:00:14]} 38. Rxa6 {[%emt 0:00:09]} Rxa6 {[%emt 0:00:04]} 39. Rb7 {[%emt 0:00:35]} Kf8 {[%emt 0:03:22]} 40. e5 {[%emt 0:01:09]} dxe5 {[%emt 0:01:26]} 41. fxe5 {[%emt 0:30:09]} Ra4 {[%emt 0:30:42]} 42. Rb8+ {[%emt 0:00:31]} Kg7 {[%emt 0:02:43]} 43. Re8 {[%emt 0:00:00]} Rxc4 {[%emt 0:00:00]} 44. Rxe7 {[%emt 0:00:00]} Rd4 {[%emt 0:00:00]} 45. d6 {[%emt 0:00:00]} Kf8 {[%emt 0:00:00]} 46. Rc7 {[%emt 0:00:00]} f6 {[%emt 0:00:00]} 47. exf6 {[%emt 0:00:00]} Rxd6 {[%emt 0:00:00]} 1/2-1/2

[Event "Schachfestival Open-A 2018"]
[Site "Lueneburg"]
[Date "2018.07.09"]
[Round "5"]
[White "Bente, Bjoern"]
[Black "Drozdowski, Konrad"]
[Result "1/2-1/2"]
[ECO "B43"]
[WhiteElo "2219"]
[BlackElo "2076"]
[Annotator "NA"]
[PlyCount "88"]
[EventDate "2018.07.06"]
[EventType "swiss"]
[EventCountry "GER"]
[SourceTitle "playchess.com"]
[Source "ChessBase"]
[SourceQuality "1"]
[TimeControl "40/5400+30:1800+30"]

1. e4 {[%emt 0:00:00]} c5 {[%emt 0:00:00]} 2. Nf3 {[%emt 0:00:00]} e6 {[%emt 0:00:00]} 3. d4 {[%emt 0:00:00]} cxd4 {[%emt 0:00:00]} 4. Nxd4 {[%emt 0:00:00]} a6 {[%emt 0:00:00]} 5. Nc3 {[%emt 0:00:00]} Qc7 {[%emt 0:00:02]} 6. g3 {[%emt 0:00:08]} Nc6 {[%emt 0:00:21]} 7. Nb3 {[%emt 0:01:43]} Nf6 {[%emt 0:01:01]} 8. Bg2 {[%emt 0:00:07]} Be7 {[%emt 0:01:11]} 9. O-O {[%emt 0:00:14]} O-O {[%emt 0:00:28]} 10. f4 {[%emt 0:00:19]} d6 {[%emt 0:00:41]} 11. g4 {[%emt 0:00:22]} Nd7 $14 {[%emt 0:03:09]} (11... d5 $5) 12. g5 {[%emt 0:03:16]} f6 {[%emt 0:07:25]} 13. h4 {[%emt 0:03:22]} Nc5 {[%emt 0:05:09]} 14. Be3 {[%emt 0:02:30]} b6 {[%emt 0:19:18]} 15. Nd2 {[%emt 0:09:52]} Bb7 {[%emt 0:03:55]} 16. Bh3 {[%emt 0:04:03]} Nd8 {[%emt 0:02:17]} 17. Rf2 {[%emt 0:05:36]} d5 {[%emt 0:03:16]} 18. exd5 {[%emt 0:01:23]} exd5 {[%emt 0:01:30]} 19. Nf3 {[%emt 0:01:16]} Ne4 {[%emt 0:02:28]} 20. Nxe4 {[%emt 0:02:55]} dxe4 {[%emt 0:00:05]} 21. Nd4 {[%emt 0:00:06]} Bc8 {[%emt 0:02:34]} 22. Bxc8 {[%emt 0:03:05]} Rxc8 {[%emt 0:03:22]} 23. Qg4 {[%emt 0:00:28]} Bc5 {[%emt 0:03:00]} 24. f5 {[%emt 0:02:53]} Qe5 {[%emt 0:07:11]} 25. c3 {[%emt 0:01:33]} Nc6 {[%emt 0:02:25]} 26. Rd1 {[%emt 0:08:35]} Bxd4 {[%emt 0:04:54]} 27. cxd4 {[%emt 0:00:28]} Qd5 {[%emt 0:00:30]} 28. gxf6 {[%emt 0:00:56]} Rxf6 {[%emt 0:00:57]} 29. Bg5 {[%emt 0:00:34]} Rf7 {[%emt 0:03:34]} 30. f6 {[%emt 0:02:12]} Qd7 {[%emt 0:03:29]} 31. Qxe4 {[%emt 0:02:11]} Re8 {[%emt 0:00:35]} 32. Qg2 {[%emt 0:01:04]} Nxd4 {[%emt 0:01:45]} 33. Rfd2 {[%emt 0:00:38]} Rd8 {[%emt 0:04:09]} 34. Rxd4 {[%emt 0:02:55]} Qxd4+ {[%emt 0:00:02]} 35. Rxd4 {[%emt 0:00:07]} Rxd4 {[%emt 0:00:02]} 36. Bh6 {[%emt 0:11:10]} Rdd7 {[%emt 0:02:19]} 37. Bg5 {[%emt 0:06:08]} gxf6 {[%emt 0:00:18]} 38. Bf4+ {[%emt 0:04:51]} Rg7 {[%emt 0:01:20]} 39. Bg3 {[%emt 0:00:05]} Rd3 {[%emt 0:01:24]} 40. Qa8+ {[%emt 0:00:05]} Kf7 {[%emt 0:00:03]} 41. Qb7+ {[%emt 0:30:14]} Kf8 {[%emt 0:30:10]} 42. Qc8+ {[%emt 0:00:09]} Ke7 {[%emt 0:00:09]} 43. Qb7+ {[%emt 0:01:28]} Kf8 {[%emt 0:00:21]} 44. Qa8+ {[%emt 0:01:20]} Kf7 {[%emt 0:00:22]} 1/2-1/2

[Event "Schachfestival Open-A 2018"]
[Site "Lueneburg"]
[Date "2018.07.09"]
[Round "5"]
[White "Poeck, Ole"]
[Black "Ploder, Udo"]
[Result "1-0"]
[ECO "A39"]
[WhiteElo "2195"]
[BlackElo "1874"]
[Annotator "NA"]
[PlyCount "89"]
[EventDate "2018.07.06"]
[EventType "swiss"]
[EventCountry "GER"]
[SourceTitle "playchess.com"]
[Source "ChessBase"]
[SourceQuality "1"]
[TimeControl "40/5400+30:1800+30"]

1. Nf3 {[%emt 0:00:00]} Nf6 {[%emt 0:00:13]} 2. c4 {[%emt 0:00:00]} c5 {[%emt 0:00:34]} 3. Nc3 {[%emt 0:00:00]} g6 {[%emt 0:00:48]} 4. g3 {[%emt 0:00:32]} Bg7 {[%emt 0:00:08]} 5. Bg2 {[%emt 0:00:05]} O-O {[%emt 0:00:11]} 6. O-O {[%emt 0:00:02]} Nc6 {[%emt 0:04:04]} 7. d4 {[%emt 0:00:45]} cxd4 {[%emt 0:01:05]} 8. Nxd4 {[%emt 0:00:09]} Qb6 {[%emt 0:02:50]} 9. Nc2 {[%emt 0:01:07]} d6 {[%emt 0:01:06]} 10. b3 {[%emt 0:00:13]} Bf5 {[%emt 0:01:15]} 11. e4 {[%emt 0:02:07]} Bg4 {[%emt 0:00:46]} 12. Qe1 {[%emt 0:03:06]} Nd7 {[%emt 0:07:34]} 13. Nd5 {[%emt 0:09:25]} Qd8 {[%emt 0:00:40]} 14. Rb1 {[%emt 0:00:12]} Nb6 {[%emt 0:05:17]} 15. h3 {[%emt 0:01:21]} Bd7 {[%emt 0:01:46]} 16. Be3 {[%emt 0:01:42]} f5 {[%emt 0:08:09]} 17. exf5 {[%emt 0:11:09]} Bxf5 {[%emt 0:02:03]} 18. Qe2 {[%emt 0:00:07]} Ne5 {[%emt 0:08:42]} 19. Rbd1 {[%emt 0:00:42]} Bxc2 {[%emt 0:06:03]} 20. Qxc2 {[%emt 0:00:08]} Nf3+ {[%emt 0:01:23]} 21. Kh1 {[%emt 0:00:19]} Nxd5 {[%emt 0:01:51]} 22. Rxd5 {[%emt 0:00:37]} Qc7 {[%emt 0:02:19]} 23. Qe4 {[%emt 0:03:48]} Ne5 {[%emt 0:01:34]} 24. f4 {[%emt 0:00:07]} Nc6 {[%emt 0:00:14]} 25. Qe6+ {[%emt 0:04:02]} Kh8 {[%emt 0:01:36]} 26. h4 {[%emt 0:06:09]} Rf6 {[%emt 0:04:36]} 27. Qe4 {[%emt 0:00:49]} Raf8 {[%emt 0:02:08]} 28. Rfd1 {[%emt 0:03:21]} b6 {[%emt 0:04:50]} 29. R5d2 {[%emt 0:02:41]} Nd8 {[%emt 0:00:53]} 30. Bh3 {[%emt 0:03:45]} R6f7 {[%emt 0:03:37]} 31. Bg4 {[%emt 0:06:04]} Qc6 {[%emt 0:03:39]} 32. Qxc6 {[%emt 0:07:51]} Nxc6 {[%emt 0:00:11]} 33. Bf3 {[%emt 0:00:08]} Rc8 {[%emt 0:00:53]} 34. Kg2 {[%emt 0:01:26]} Rff8 {[%emt 0:01:15]} 35. h5 {[%emt 0:01:55]} gxh5 {[%emt 0:04:41]} 36. Bxh5 {[%emt 0:00:52]} Nd8 {[%emt 0:02:08]} 37. Rh1 {[%emt 0:02:04]} Kg8 {[%emt 0:00:59]} 38. Bg4 {[%emt 0:01:14]} Rc7 {[%emt 0:01:16]} 39. Rd5 {[%emt 0:00:28]} Rf6 {[%emt 0:04:53]} 40. Bd4 {[%emt 0:06:12]} Rh6 {[%emt 0:07:45]} 41. Rxh6 {[%emt 0:34:20]} Bxh6 {[%emt 0:30:58]} 42. Rh5 {[%emt 0:00:02]} Bf8 {[%emt 0:02:58]} 43. Rg5+ {[%emt 0:05:47]} Kf7 {[%emt 0:00:08]} 44. Bh5+ {[%emt 0:00:19]} Ke6 {[%emt 0:00:30]} 45. Be8 {[%emt 0:02:19] Ke5} 1-0

[Event "Schachfestival Open-A 2018"]
[Site "Lueneburg"]
[Date "2018.07.09"]
[Round "5"]
[White "Ramme, Christoph"]
[Black "Thorsbro, Peter"]
[Result "1-0"]
[ECO "D46"]
[WhiteElo "2158"]
[BlackElo "2116"]
[Annotator "NA"]
[PlyCount "51"]
[EventDate "2018.07.06"]
[EventType "swiss"]
[EventCountry "GER"]
[SourceTitle "playchess.com"]
[Source "ChessBase"]
[SourceQuality "1"]
[TimeControl "40/5400+30:1800+30"]

1. d4 {[%emt 0:00:00]} d5 {[%emt 0:02:11]} 2. Nf3 {[%emt 0:00:00]} c6 {[%emt 0:00:07]} 3. c4 {[%emt 0:00:00]} Nf6 {[%emt 0:00:05]} 4. e3 {[%emt 0:00:48]} e6 {[%emt 0:00:14]} 5. Nc3 {[%emt 0:00:19]} Nbd7 {[%emt 0:00:06]} 6. Bd3 {[%emt 0:01:13]} Bd6 {[%emt 0:00:22]} 7. O-O {[%emt 0:00:51]} O-O {[%emt 0:00:11]} 8. e4 {[%emt 0:02:13]} dxe4 {[%emt 0:00:33]} 9. Nxe4 {[%emt 0:00:24]} Nxe4 {[%emt 0:00:03]} 10. Bxe4 $14 {[%emt 0:00:10]} Nf6 {[%emt 0:00:15]} 11. Bc2 {[%emt 0:02:15]} c5 {[%emt 0:02:46]} 12. Bg5 {[%emt 0:03:57]} cxd4 {[%emt 0:06:08]} 13. Qxd4 {[%emt 0:03:57]} Be7 {[%emt 0:05:55]} 14. Qh4 {[%emt 0:01:15]} h6 {[%emt 0:02:03]} 15. Bxh6 {[%emt 0:02:22]} gxh6 {[%emt 0:00:06]} 16. Qxh6 {[%emt 0:00:24]} Bc5 {[%emt 0:23:00]} 17. Rae1 {[%emt 0:14:06]} Bd4 {[%emt 0:14:52]} 18. Qg5+ {[%emt 0:05:56]} Kh8 {[%emt 0:00:06]} 19. Qh4+ {[%emt 0:00:21]} Kg8 {[%emt 0:00:06]} 20. Nxd4 {[%emt 0:00:36]} Re8 {[%emt 0:01:05]} 21. Qg5+ {[%emt 0:02:46]} Kf8 {[%emt 0:00:13]} 22. Qh6+ {[%emt 0:00:32]} Ke7 {[%emt 0:03:01]} 23. Nf5+ {[%emt 0:00:21]} Kd7 {[%emt 0:00:06]} 24. Rd1+ {[%emt 0:00:32]} Nd5 {[%emt 0:00:05]} 25. Rxd5+ {[%emt 0:02:50]} exd5 {[%emt 0:00:10]} 26. Qd6# 1-0

[Event "Schachfestival Open-A 2018"]
[Site "Lueneburg"]
[Date "2018.07.09"]
[Round "5"]
[White "Marxen, Peter"]
[Black "Kardoeus, David"]
[Result "1/2-1/2"]
[ECO "B33"]
[WhiteElo "2068"]
[BlackElo "2188"]
[Annotator "ChessBase"]
[PlyCount "135"]
[EventDate "2018.07.06"]
[EventType "swiss"]
[EventCountry "GER"]
[SourceTitle "playchess.com"]
[Source "ChessBase"]
[SourceQuality "1"]
[TimeControl "40/5400+30:1800+30"]

1. e4 {[%emt 0:01:30]} c5 {[%emt 0:00:00]} 2. Nf3 {[%emt 0:00:32]} Nc6 {[%emt 0:00:00]} 3. d4 {[%emt 0:00:07]} cxd4 {[%emt 0:00:00]} 4. Nxd4 {[%emt 0:00:01]} Nf6 {[%emt 0:00:12]} 5. Nc3 {[%emt 0:00:06]} e5 {[%emt 0:00:07]} 6. Ndb5 {[%emt 0:01:52]} d6 {[%emt 0:00:09]} 7. Bg5 {[%emt 0:00:51]} a6 {[%emt 0:00:07]} 8. Na3 {[%emt 0:00:09]} b5 {[%emt 0:00:07]} 9. Nd5 {[%emt 0:00:29]} Be7 {[%emt 0:00:11]} 10. Bxf6 {[%emt 0:00:28]} Bxf6 {[%emt 0:00:08]} 11. c3 {[%emt 0:00:37]} O-O {[%emt 0:00:14]} 12. Nc2 {[%emt 0:00:54]} Bg5 {[%emt 0:00:08]} 13. a4 {[%emt 0:00:48]} bxa4 {[%emt 0:00:07]} 14. Rxa4 {[%emt 0:00:05]} Rb8 {[%emt 0:00:08]} 15. Ra2 {[%emt 0:06:17]} a5 {[%emt 0:02:38]} 16. Bc4 {[%emt 0:02:33]} Be6 {[%emt 0:01:45]} 17. O-O {[%emt 0:07:34]} Kh8 {[%emt 0:00:26]} 18. b3 {[%emt 0:05:39]} Ne7 {[%emt 0:03:44]} 19. Nce3 {[%emt 0:05:54]} Bxe3 {[%emt 0:01:06]} 20. Nxe3 {[%emt 0:01:05]} Qc7 {[%emt 0:08:17]} 21. Qd3 {[%emt 0:03:37]} Bxc4 {[%emt 0:07:31]} 22. bxc4 {[%emt 0:04:34]} Qc5 {[%emt 0:02:47]} 23. Rd1 {[%emt 0:07:33]} Rb6 {[%emt 0:02:45]} 24. Nd5 {[%emt 0:02:43]} Nxd5 {[%emt 0:00:36]} 25. Qxd5 {[%emt 0:02:33]} Qxd5 {[%emt 0:01:12]} 26. cxd5 {[%emt 0:00:26]} Ra8 {[%emt 0:07:19]} 27. Ra4 {[%emt 0:00:43]} Rb3 {[%emt 0:12:38]} 28. Rc1 {[%emt 0:01:54]} g6 {[%emt 0:02:32]} 29. Kf1 {[%emt 0:01:05]} f5 {[%emt 0:00:51]} 30. exf5 {[%emt 0:00:59]} gxf5 {[%emt 0:00:09]} 31. c4 {[%emt 0:00:31]} Rb4 {[%emt 0:00:26]} 32. Rxb4 {[%emt 0:01:04]} axb4 {[%emt 0:00:02]} 33. Rb1 {[%emt 0:00:29]} Ra4 {[%emt 0:02:09]} 34. Ke2 {[%emt 0:01:18]} Kg7 {[%emt 0:00:08]} 35. Kd3 {[%emt 0:02:43]} Ra3+ {[%emt 0:12:35]} 36. Ke2 {[%emt 0:04:15]} b3 {[%emt 0:02:04]} 37. Kd2 {[%emt 0:03:25]} Ra2+ {[%emt 0:04:08]} 38. Ke1 {[%emt 0:01:21]} e4 {[%emt 0:03:53]} 39. Rxb3 {[%emt 0:06:59]} Kf6 {[%emt 0:00:09]} 40. Rh3 {[%emt 0:09:15]} Ke5 {[%emt 0:02:48]} 41. Rxh7 {[%emt 0:31:26]} f4 {[%emt 0:39:35]} 42. f3 {[%emt 0:04:09]} e3 {[%emt 0:01:12]} 43. g3 {[%emt 0:02:50]} Kd4 {[%emt 0:01:02]} 44. Rb7 {[%emt 0:01:20]} Rxh2 {[%emt 0:10:51]} 45. gxf4 {[%emt 0:02:30]} Kxc4 {[%emt 0:00:00]} 46. Ra7 {[%emt 0:00:00]} Rf2 {[%emt 0:00:00]} 47. Ra4+ {[%emt 0:00:00]} Kd3 {[%emt 0:00:00]} 48. Ra3+ {[%emt 0:00:00]} Kd4 {[%emt 0:00:00]} 49. Ra4+ {[%emt 0:00:00]} Kxd5 {[%emt 0:00:00]} 50. f5 {[%emt 0:00:00]} Rxf3 {[%emt 0:00:00]} 51. Ke2 {[%emt 0:00:00]} Rxf5 {[%emt 0:00:00]} 52. Kxe3 {[%emt 0:00:00]} Rf1 {[%emt 0:00:00]} 53. Ke2 {[%emt 0:00:00]} Rh1 {[%emt 0:00:00]} 54. Kd2 {[%emt 0:00:00]} Ke5 {[%emt 0:00:00]} 55. Rg4 {[%emt 0:00:00]} d5 {[%emt 0:00:00]} 56. Ra4 {[%emt 0:00:00]} Rh2+ {[%emt 0:00:00]} 57. Kd3 {[%emt 0:00:00]} Rh3+ {[%emt 0:00:00]} 58. Kd2 {[%emt 0:00:00]} Rb3 {[%emt 0:00:00]} 59. Rh4 {[%emt 0:00:00]} Ra3 {[%emt 0:00:00]} 60. Rg4 {[%emt 0:00:00]} Kd6 {[%emt 0:00:00]} 61. Rh4 {[%emt 0:00:00]} Kc5 {[%emt 0:00:00]} 62. Rg4 {[%emt 0:00:00]} Rf3 {[%emt 0:00:00]} 63. Rh4 {[%emt 0:00:00]} Rf2+ {[%emt 0:00:00]} 64. Ke3 {[%emt 0:00:00]} Rf5 {[%emt 0:00:00]} 65. Kd3 {[%emt 0:00:00]} d4 {[%emt 0:00:00]} 66. Rxd4 {[%emt 0:00:00]} Rf3+ {[%emt 0:00:00]} 67. Ke2 {[%emt 0:00:00]} Kxd4 {[%emt 0:00:00]} 68. Kxf3 {[%emt 0:00:00]} 1/2-1/2